Workbook

Sheet Roadside Hazard
A1: GUARDRAIL LENGTH OF NEED v1.2 - ROADSIDE HAZARD SHIELDING:
A2: For FDOT Standard Plans, Index 536-001 | C2: Roadway Name / Feature:
C3: FPID:
C4: Designer:
A5: PART A: LENGTH OF NEED FOR NEAR LANE
B20: Input: | C20: Comment:
A21: Direction of Near Lane Traffic | B21: Westbound | C21: for relative stationing calculations
A22: AADT (Vehicles Per Day) | B22: 10000
A23: Design Speed (MPH) | B23: 50
A24: Approach Face of Hazard Station | B24: 1000 | C24: enter as total feet (do not input a plus sign)
A25: Length of Hazard, LH (Ft.) | B25: 10
A26: Lateral Area Concern, LA (Ft.) | B26: 35 | C26: the lesser distance from the 'Edge of Traffic Lane' to the 'Clear Zone Limit' or 'Back of Hazard'
A27: Lateral Offset of Guardrail, LO (Ft.) | B27: 10 | C27: the typical guardrail offset from the 'Edge of Traffic Lane,' near the 'Hazard' location (outside of flare)
A28: Length of Gating, LG (Ft.) | B28: 12.5 | C28: "Gating" Terminals typically have a 'Start LON' at Post 3 or Post 4 per the APL Drawings. For "Non-Gating" Terminals, the 'Start LON' is at 'Post 1' (LG =0). NOTE: Prior to use of "Non-Gating" terminals, verify availability of applicable options on the APL (MASH required for new projects).
A29: Terminal Flare @ Post(1) (Ft.) | B29: 0 | C29: This input equals 0 Ft. where RDB18-02 applies for new projects with MASH terminals; flared terminals are not available. Otherwise, this input has a 4 Ft. max. for old NCHRP350 designs.
A30: Flare's Taper Length (Ft.) | B30: 35 | C30: default value is acceptable at 35'-0", but this may be refined per specific APL drawing (Input used to calculate 'Y')
B31: Output:
A32: End Treatment Offset, Y (Ft.) | B32: =IF(B30<B28,B27,B27+B29-(B28/IF(B30=0,1,B30))*B29) -> 10
A33: Runout Length, LR (Ft.) | B33: =INDEX(value,MATCH(B23,row,-1),MATCH(B22,col,1)) -> 230
A34: Length of Need, X (Ft.) | B34: =(B26-B32)/(B26/B33) -> 164.2857143 | C34: AASHTO RDG (5-3)
A35: Unadjusted Begin/End Guardrail Sta. @ Primary Approach Terminal | B35: =IF(OR(B21="Westbound",B21="Southbound"),(B24+B34+B28),(B24-B34-B28)) -> 1176.785714
A36: Unadjusted Begin/End Guardrail Sta. @ Trailing Anchorage (If Applicable) | B36: =IF(B60="No",IF(OR(B21="Westbound",B21="Southbound"), (B24-B25-25),(B24+B25+25)),"N.A.") -> 965
A38: *NOTE: If the Trailing Anchorage shown herein is in the Clear Zone of an opposing Traffic Lane, use an Approach Terminal in its place.
A40: PART B: LENGTH OF NEED FOR FAR LANE - OPPOSING DIRECTION (IF APPLICABLE) ('Part A' Extension, If Required For 2-Lane, 2-Way Road with Hazard in Far Lane's Clear Zone)
B59: Input: | C59: Comment:
A60: PART B Required? (User Input Needed) | B60: No | C60: Is this a 2-lane, 2-way road with the Hazard in the Far Lane's Clear Zone limit? If "No" Part B will be excluded from the placement calculation output below.
A61: Lateral Area Concern, LA (Ft.) | B61: 32 | C61: the lesser distance from the 'Edge of Traffic Lane' (Far Lane) to the 'Clear Zone Limit' or 'Back of Hazard'
A62: Lateral Offset of Guardrail, LO (Ft.) | B62: 22 | C62: the typical guardrail offset from the 'Edge of Traffic Lane' (Far Lane), near the 'Hazard' location (outside of flare)
A63: Length of Gating, LG (Ft.) | B63: 12.5 | C63: per the APL Drawings, "Gating" Terminals typically have a 'Start LON' at Post 3 or Post 4. For "Non-Gating" Terminals, the Start LON is at 'Post 1' (LG =0). NOTE: The flare rate effect on Lg, assumed parallel to the roadway, is negligible and may be omitted.
A64: Terminal Flare @ Post(1) (Ft.) | B64: 0 | C64: This input equals 0 Ft. where RDB18-02 applies for new projects with MASH terminals; flared terminals are not available. Otherwise, this input has a 4 Ft. max. for old NCHRP350 designs.
A65: Flare's Taper Length (Ft.) | B65: 35 | C65: default value is acceptable at 35'-0", but this may be refined per specific APL drawing (Input used to calculate 'Y')
B66: Output:
A67: End Treatment Offset, Y (Ft.) | B67: =IF(B60="No","N.A.",IF(B65<B63,B62,B62+B64-(B63/IF(B65=0,1,B65))*B64)) -> N.A.
A68: Direction of Far Lane Traffic | B68: =IF(B60="No","N.A.",IF(B21="Westbound","Eastbound",IF(B21="Eastbound", "Westbound",IF(B21="Northbound","Southbound",IF(B21="Southbound","Northbound"))))) -> N.A.
A69: Approach Face of Hazard Station (Far Lane) | B69: =IF(B60="Yes",IF(OR(B21="Westbound",B21="Southbound"), (B24-B25),(B24+B25)),"N.A.") -> N.A.
A70: Runout Length, LR (Ft.) | B70: =IF(B60="Yes",INDEX(value,MATCH(B23,row,-1),MATCH(B22,col,1)),"N.A.") -> N.A.
A71: Length of Need, X (Ft.) | B71: =IF(B60="Yes",(B61-B67)/(B61/B70),"N.A.") -> N.A. | C71: AASHTO RDG (5-3)
A72: Unadjusted Begin/End Guardrail Sta. @ Secondary Approach Terminal | B72: =IF(B60="Yes",IF(OR(B21="Westbound",B21="Southbound"), B24-B25-B71-B63,B24+B25+B71+B63),"N.A.") -> N.A.
A74: Unadjusted Length | B74: =IF(B82="-",ABS(B72-B35),ABS(B36-B35)) -> 211.7857143
A75: Adjusted Length | B75: =ROUNDUP(B74/6.25, 0)*6.25 -> 212.5
A76: Adjustment Reqd. | B76: =IF(B82="-", (B75-B74)/2, (B75-B74)) -> 0.7142857143 | C76: Only added to approach ends, value automatically splits for two approach ends
A77: Total Length of Guardrail (Ft.) (Prior to Curve Adjustments) | B77: =IF(B82="-",ABS(C80-C84),ABS(C80-C82)) -> 212.5 | C77: Program check based on outputs
A78: DESIGN OUTPUT SUMMARY: GUARDRAIL ROADSIDE HAZARD SHIELDING
B79: Limit: | C79: Output:
A80: Adjusted Begin/End Guardrail Sta. @ PRIMARY Approach Terminal (From Part A) | B80: =IF(OR(B21="Eastbound",B21="Northbound"),"≤", "≥") -> ≥ | C80: =IF(B80="≤",B35-B76,B35+B76) -> 1177.5 | D80: Outputs assume linear stationing: To adjust for curvature, lengthen the guardrail with the Begin/End Guardrail stations placed outside of the stationing limits shown here. Use CADD measurement to bring the final guardrail length to a multiple of 6'-3" panels.
A81: Guardrail Offset from Nearest Edge of Traffic Lane (Ft.) : | C81: =B27+B29 -> 10
A82: Adjusted Begin/End Guardrail Sta. @ Trailing Anchorage (From Part A, If Applicable) | B82: =IF(B36="N.A.","-",IF(OR(B21="Eastbound",B21="Northbound"),"≥", "≤")) -> ≤ | C82: =B36 -> 965
A83: Guardrail Offset from Nearest Edge of Traffic Lane (Ft.) : | C83: =IF(C82="N.A.", "N.A.",B27) -> 10
A84: Adjusted Begin/End Guardrail Sta. @ SECONDARY Approach Terminal (From Part B, If Applicable) | B84: =IF(B72="N.A.","-",IF(OR(B21="Eastbound",B21="Northbound"),"≥", "≤")) -> - | C84: =IF(B84="≥",B72+B76,IF(B84= "≤", B72-B76, "N.A.")) -> N.A.
A85: Guardrail Offset from Nearest Edge of Traffic Lane (Ft.) : | C85: =IF(C84="N.A.", "N.A.",B27+B64) -> N.A.

Sheet Bridge Approach with C.C.
A1: GUARDRAIL LENGTH OF NEED v1.2 - BRIDGE CONCRETE RAILING SHIELDING
A2: For FDOT Standard Plans, Index 536-001 (New or Compatible Rigid Barrier End with No Approach Slab Conflict) | C2: Roadway Name / Feature:
C3: FPID:
C4: Designer:
A5: PART C: CROSSOVER GUARDRAIL WITH 'CRASH CUSHION' - SHIELDING CONCRETE RAILING ACROSS MEDIAN (WITHIN CLEAR ZONE)
B20: Input: | C20: Comment:
A21: Direction of Near Lane Traffic | B21: Westbound | C21: for relative stationing calculations
A22: AADT (Vehicles Per Day) | B22: 10000
A23: Design Speed (MPH) | B23: 50
A24: Begin/End Rigid Barrier Sta. (@ Barrier Closest the Near Traffic Lane) | B24: =9900+7.25/12 -> 9900.604167 | C24: enter as total feet (do not input a plus sign); located at the end of the 'Rigid Barrier' (not the Begin/End Guardrail Sta.)
A25: Lateral Offset of Guardrail, LO (Ft.) | B25: 6 | C25: the starting guardrail offset from the 'Edge of Near Traffic Lane' at the location where the guardrail connects to the 'Rigid Barrier' (determined by the designer)
A26: Lateral Area Concern, LA (Ft.) | B26: 30 | C26: the lateral distance from the 'Edge of Near Traffic Lane' to the far edge of the opposing 'Rigid Barrier' (i.e. Concrete Traffic Railing) across the median
A27: Parallel Approach Trans. Length, LP1 (Ft.) | B27: =12+6/12+6+3/12+9+4.5/12-7.25/12 -> 27.52083333 | C27: the length of the guardrail Approach Transition Connection prior to the start of the taper; per Index 536-001 options, TL-3=27.5 Ft. and TL-2=18.2 Ft. NOTE: This is measured from the end of the 'Rigid Barrier' (not the 'Begin/End Guardrail Sta.')
A28: Parallel C.C. Trans. Length, LP2 (Ft.) | B28: =18+9/12+3+1.5/12 -> 21.875 | C28: the length of the parallel segment required for Guardrail Transition, just beyond the taper. This is the length between Post (1) and Post (10) per Index 430, 21.9 Ft.
A29: Taper Rate of Crossover, 1:TR (Ft.) | B29: 15 | C29: the linear taper rate for the Median Crossover Segment; 1:10 for Design Speeds ≤ 45 MPH and 1:15 for Design Speeds > 45 MPH.
A30: Rigid Barrier Skew, S (Ft.) | B30: 10 | C30: the longitudinal "skew" distance between the guardrail's connecting Rigid Barrier end and the 'Hazard' Rigid Barrier end (across the median). For the direction opposite the drawing dimension, use a negative value.
A31: Parallel Length Total, LP | B31: =B27+B28 -> 49.39583333
A32: Unadjusted Length of Need | B32: =(B29*B30*B26-B43*(B29*B25-B29*B26-B31))/(B43+B29*B26) -> 145.0897672
A33: Unadjusted Y | B33: =(B32-(B27+B28))/B29+B25 -> 12.37959559
A34: Unadjusted Length Crossover Parallel | B34: =B32-B27-B28 -> 95.69393382
A35: Unadjusted Length Crossover Panels | B35: =SQRT((B34)^2+(B33-B25)^2) -> 95.90635125
A36: Adjusted Length Crossover Panels | B36: =ROUNDUP(B35/6.25,0)*6.25 -> 100
A37: Taper Angle | B37: =ATAN(1/B29)*180/3.14 -> 3.816009388
A38: Adjusted Length Crossover Parallel | B38: =COS(B37*3.14/180)*B36 -> 99.77851579
A39: Adjusted Y | B39: =SIN(B37*3.14/180)*B36+B25 -> 12.65190105
A40: Adjusted Length of Need | B40: =B38+B27+B28 -> 149.1743491
A41: PART C: OUTPUT SUMMARY:
A42: End Treatment Offset, Y (Ft.) | B42: =B39 -> 12.65190105 | C42: The outputs assume stationing is linear and are adjusted to bring tapered segment panel lengths to a multiple of 6'-3". The output stations may be used directly in the Plans, assuming that roadway curvature does not cause a discrepancy of more than 3'-0" between the these output stations and the actual guardrail panel slot & post locations (Tolerance per Specification Section 536). If adjustments for curvature are required to bring the stationing closer to the actual panel slot & post locations, use LP1 and LP2, adjusted for curvature, and add additional length to the taper segment as needed.
A43: Runout Length, LR (Ft.) | B43: =INDEX(value,MATCH(B23,row,-1),MATCH(B22,col,1)) -> 230
A44: Length of Need, XS (Ft.) | B44: =B40 -> 149.1743491
A45: Begin/End Guardrail Sta. @ Connection to Rigid Barrier | B45: =IF(OR(B21="Westbound",B21="Southbound"),(B24-7.25/12),(B24+7.25/12)) -> 9900
A46: Offset from Edge of Near Traffic Lane (Ft.) | B46: =B25 -> 6
A47: Begin/End Taper Sta. | B47: =IF(OR(B21="Westbound",B21="Southbound"),(B24+B27),(B24-B27)) -> 9928.125
A48: Offset from Edge of Near Traffic Lane (Ft.) | B48: =B25 -> 6
A49: Begin/End Taper Sta. | B49: =IF(OR(B21="Westbound",B21="Southbound"),(B24+B27+B38),(B24-B27-B38)) -> 10027.90352
A50: Offset from Edge of Near Traffic Lane (Ft.) | B50: =B42 -> 12.65190105
A51: Begin/End Guardrail Sta. @ Connection Post (1) | B51: =IF(OR(B21="Westbound",B21="Southbound"),(B24+B44),(B24-B44)) -> 10049.77852
A52: Offset from Edge of Near Traffic Lane (Ft.) | B52: =B42 -> 12.65190105
A55: Modified AASHTO RDG (5-3) Length of Need Equation: (Solves for 'XS' given a Taper Rate 'TR' and Skew 'S')
A57: Where:

Sheet Bridge Approach with Terminal
A1: GUARDRAIL LENGTH OF NEED v1.2 - BRIDGE CONCRETE RAILING SHIELDING
A2: For FDOT Standard Plans, Index 536-001 (New or Compatible Rigid Barrier End with No Approach Slab Conflict) | C2: Roadway Name / Feature:
C3: FPID:
C4: Designer:
A5: PART D: CROSSOVER GUARDRAIL WITH 'APPROACH TERMINAL' - SHIELDING CONCRETE RAILING ACROSS MEDIAN (WITHIN CLEAR ZONE)
B20: Input: | C20: Comment:
A21: Direction of Near Lane Traffic | B21: Westbound | C21: for relative stationing calculations
A22: AADT (Vehicles Per Day) | B22: 10000
A23: Design Speed (MPH) | B23: 50
A24: Begin/End Rigid Barrier Sta. (@ Barrier Closest the Near Traffic Lane) | B24: 9000.6 | C24: enter as total feet (do not input a plus sign); located at the end of the 'Rigid Barrier' (not the Begin/End Guardrail Sta.)
A25: Lateral Offset of Guardrail, LO (Ft.) | B25: 6 | C25: the starting guardrail offset from the 'Edge of Near Traffic Lane' at the location where the guardrail connects to the 'Rigid Barrier' (determined by the designer)
A26: Lateral Area Concern, LA (Ft.) | B26: 30 | C26: the lateral distance from the 'Edge of Near Traffic Lane' to the far edge of the opposing 'Rigid Barrier' (i.e. Concrete Traffic Railing) across the median
A27: Parallel Approach Trans. Length, LP1 (Ft.) | B27: =12+6/12+6+3/12+9+4.5/12-7.25/12 -> 27.52083333 | C27: the length of the guardrail Approach Transition Connection prior to the start of the taper; per Index 536-001 options, TL-3=27.5 Ft. and TL-2=18.2 Ft. NOTE: This is measured from the end of the 'Rigid Barrier' (not the 'Begin/End Guardrail Sta.')
A28: Parallel Approach Terminal Length, LP2 (Ft.) | B28: 56.25 | C28: the length of the parallel segment required for the Approach Terminal, just beyond the taper; Per Index 400, TL-3 = 56.3 Ft.
A29: Length of Gating, LG (Ft.) | B29: 12.5 | C29: "Gating" Terminals typically have a 'Start LON' at Post 3 or Post 4 per the APL Drawings. For "Non-Gating" Terminals, the 'Start LON' is at 'Post 1' (LG =0). NOTE: Prior to use of "Non-Gating" terminals, verify availability of applicable options on the APL (MASH required for new projects).
A30: Taper Rate of Crossover, 1:TR (Ft.) | B30: 15 | C30: the linear taper rate for the Median Crossover Segment; 1:10 for Design Speeds ≤ 45 MPH and 1:15 for Design Speeds > 45 MPH.
A31: Rigid Barrier Skew, S (Ft.) | B31: 10 | C31: the longitudinal "skew" distance between the guardrail's connecting Rigid Barrier end and the "Hazard" Rigid Barrier end (across the median). For the direction opposite the drawing dimension, use a negative value.
A32: Parallel Length Total, LP | B32: =B27+B28-B29 -> 71.27083333
A33: Unadjusted Length of Need | B33: =(B30*B31*B26-B44*(B30*B25-B30*B26-B32))/(B44+B30*B26) -> 152.4886642
A34: Unadjusted Y | B34: =(B33-(B27+B28-B29))/B30+B25 -> 11.41452206
A35: Unadjusted Length Crossover Parallel | B35: =B33-B27-(B28-B29) -> 81.21783088
A36: Unadjusted Length Crossover Panels | B36: =SQRT((B35)^2+(B34-B25)^2) -> 81.39811486
A37: Adjusted Length Crossover Panels | B37: =ROUNDUP(B36/6.25,0)*6.25 -> 87.5
A38: Taper Angle | B38: =ATAN(1/B30)*180/3.14 -> 3.816009388
A39: Adjusted Length Crossover Parallel | B39: =COS(B38*3.14/180)*B37 -> 87.30620131
A40: Adjusted Y | B40: =SIN(B38*3.14/180)*B37+B25 -> 11.82041342
A41: Adjusted Length of Need | B41: =B39+B27+(B28-B29) -> 158.5770346
A42: PART D: OUTPUT SUMMARY:
A43: End Treatment Offset, Y (Ft.) | B43: =B40 -> 11.82041342 | C43: The outputs assume stationing is linear and are adjusted to bring tapered segment panel lengths to a multiple of 6'-3". The stations provided here may be used directly in the Plans, assuming that roadway curvature does not cause a discrepancy of more than 3'-0" between the these output stations and the actual guardrail panel slot/post locations (Tolerance per Specification Section 536). If adjustments for curvature are required to bring the stationing closer to the actual panel slot and post locations, use LP1 and LP2, adjusted for curvature, and add additional length to the taper segment as needed.
A44: Runout Length, LR (Ft.) | B44: =INDEX(value,MATCH(B23,row,-1),MATCH(B22,col,1)) -> 230
A45: Length of Need, XS (Ft.) | B45: =B41 -> 158.5770346
A46: Begin/End Guardrail Sta. @ Connection to Rigid Barrier | B46: =IF(OR(B21="Westbound",B21="Southbound"),(B24-7.25/12),(B24+7.25/12)) -> 8999.995833
A47: Offset from Edge of Near Traffic Lane (Ft.) | B47: =B25 -> 6
A48: Begin/End Taper Sta. | B48: =IF(OR(B21="Westbound",B21="Southbound"),(B24+B27),(B24-B27)) -> 9028.120833
A49: Offset from Edge of Near Traffic Lane (Ft.) | B49: =B25 -> 6
A50: Begin/End Taper Sta. | B50: =IF(OR(B21="Westbound",B21="Southbound"),(B24+B27+B39),(B24-B27-B39)) -> 9115.427035
A51: Offset from Edge of Near Traffic Lane (Ft.) | B51: =B43 -> 11.82041342
A52: Begin/End Guardrail Sta. @ Post (1) | B52: =IF(OR(B21="Westbound",B21="Southbound"),(B24+B45+B29),(B24-B45-B29)) -> 9171.677035
A53: Offset from Edge of Near Traffic Lane (Ft.) | B53: =B43 -> 11.82041342
A56: Modified AASHTO RDG (5-3) Length of Need Equation: (Solves for 'XS' given a Taper Rate 'TR' and Skew 'S')
A58: Where:

Sheet Rigid Barrier Approach
A1: GUARDRAIL LENGTH OF NEED v1.2 - RIGID BARRIER & HAZARD SHIELDING:
A2: For FDOT Standard Plans, Index 536-001 (New or Compatible Rigid Barrier End with No Approach Slab Conflict) | C2: Roadway Name / Feature:
C3: FPID:
C4: Designer:
A5: PART E: LENGTH OF NEED FOR SIMPLE LAYOUT TO RIGID BARRIER - (ANY OPPOSING LANE'S RIGID BARRIER IS OUTSIDE OF CLEAR ZONE)
B20: Input: | C20: Comment:
A21: Direction of Near Lane Traffic | B21: Westbound | C21: for relative stationing calculations
A22: AADT (Vehicles Per Day) | B22: 10000
A23: Design Speed (MPH) | B23: 55
A24: Approach Transition Connection Type | B24: TL-3 | C24: from Index 536-001, either TL-2 or TL-3 length
A25: Begin/End Rigid Barrier Sta. | B25: 10000.6 | C25: enter as total feet (do not input a plus sign); located at the end of the 'Rigid Barrier' (not the Begin/End Guardrail Sta.)
A26: Approach Face of Hazard Sta. | B26: 9980 | C26: enter as total feet (do not input a plus sign)
A27: Length of Hazard, LH (Ft.) | B27: 10
A28: Lateral Area Concern, LA (Ft.) | B28: 35 | C28: the lesser distance from the 'Edge of Near Traffic Lane' to the 'Clear Zone Limit' or 'Back of Hazard'
A29: Lateral Offset of Guardrail, LO (Ft.) | B29: 10 | C29: the typical guardrail offset from the 'Edge of Traffic Lane' at the connection point to the Approach Terminal segment (offset excludes Flare, if applicable)
A30: Approach Terminal Design Length (Ft.) | B30: 53.1 | C30: from Index 536-001, predefined length is 53.1' for TL-3 and 40.6' for TL-2; values may be adjusted per specific SPI design length (requires specific Plans callout, see SPI)
A31: Length of Gating, LG (Ft.) | B31: 12.5 | C31: "Gating" Terminals typically have a 'Start LON' at Post 3 or Post 4 per the APL Drawings. For "Non-Gating" Terminals, the 'Start LON' is at 'Post 1' (LG =0). NOTE: Prior to use of "Non-Gating" terminals, verify availability of applicable options on the APL (MASH required for new projects).
A32: Terminal Flare @ Post(1) (Ft.) | B32: 0 | C32: This input equals 0 Ft. where RDB18-02 applies for new projects with MASH terminals; flared terminals are not available. Otherwise, this input has a 4 Ft. max. for old NCHRP350 designs.
A33: Flare's Taper Length (Ft.) | B33: 35 | C33: default value is acceptable at 35'-0", but this may be refined per specific APL drawing (Input used to calculate 'Y')
A34: delta Hazard to Rigid Barrier (Ft.) | B34: =IF(OR(B21="Westbound",B21="Southbound"),(B26-B25),(B25-B26)) -> -20.6
A35: Approach Trans. Length | B35: =IF(B24="TL-2",21.875,31.25) -> 31.25
A36: XL + LG unadjusted | B36: =B43+B34+B31 -> 181.1857143
A37: XL + LG adjusted to nearest panel | B37: =ROUNDUP((B36-B35-B30)/6.25,0)*6.25+B35+B30 -> 184.35 | D37: TL-2
A38: XL + LG adjusted for minimum length | B38: =IF(B36<(B35+B30),(B30+B35),B37) -> 184.35 | D38: TL-3
B39: Output:
A40: Approach Transition Length | B40: =B35 -> 31.25
A41: End Treatment Offset, Y (Ft.) | B41: =IF(B33<B31,B29,B29+B32-(B31/IF(B33=0,1,B33))*B32) -> 10
A42: Runout Length, LR (Ft.) | B42: =INDEX(value,MATCH(B23,row,-1),MATCH(B22,col,1)) -> 265
A43: Length of Need, X (Ft.) | B43: =(B28-B41)/(B28/B42) -> 189.2857143 | C43: AASHTO RDG (5-3)
A44: Length of Need, XL (Ft.) | B44: =B43+B34 -> 168.6857143
A45: Unadjusted Begin/End Guardrail Sta. @ Rigid Barrier | B45: =IF(OR(B21="Westbound",B21="Southbound"),(B25-7.25/12),(B25+7.25/12)) -> 9999.995833
A46: Unadjusted Begin/End Guardrail Sta. @ Approach Terminal, Post(1) | B46: =IF(OR(B21="Westbound",B21="Southbound"),(B45+B44+B31),(B45-B44-B31)) -> 10181.18155
A48: DESIGN OUTPUT SUMMARY:
B49: Limit: | C49: Output:
A50: Adjusted Begin/End Guardrail Sta. @ Connection to Rigid Barrier | B50: = | C50: =B45 -> 9999.995833 | D50: Outputs assume linear stationing: To adjust for curvature, lengthen the guardrail with the Begin/End Guardrail stations placed outside of the stationing limits shown here. Use CADD measurement to bring the final guardrail length to buildable length, including the Approach Transition, End Treatment, and 6'-3" panel multiple.
A51: *Adjusted Begin/End Guardrail Sta. @ Approach Terminal, Post(1) | B51: =IF(OR(B21="Eastbound",B21="Northbound"),"≤", "≥") -> ≥ | C51: =IF(OR(B21="Westbound",B21="Southbound"),(B45+B38),(B45-B38)) -> 10184.34583
A52: Guardrail Offset from Nearest Edge of Traffic Lane (Ft.) @ Post(1): | C52: =B29+B32 -> 10
A54: *NOTE: Stationing is automatically adjusted to the Approach Transition length plus the Approach Terminal length plus the 6'-3" panel length increment (not accounting for curvature effects). Where 'Length of Need' does not govern, the minimum length of guardrail required is the Approach Transition length plus the Approach Terminal length (stationing outputs account for this).

Sheet RDG Data
A1: Runout Lengths, LR (Ft.):
A2: Design Speed (MPH) | B2: ADT (VPD Threshold)
B3: 0 | C3: 1000 | D3: 5000 | E3: 10000
A4: 80 | B4: 330 | C4: 380 | D4: 430 | E4: 470
A5: 75 | B5: =(B4+B6)/2 -> 290 | C5: =(C4+C6)/2 -> 335 | D5: =(D4+D6)/2 -> 380 | E5: =(E4+E6)/2 -> 415
A6: 70 | B6: 250 | C6: 290 | D6: 330 | E6: 360
A7: 65 | B7: =(B6+B8)/2 -> 225 | C7: =(C6+C8)/2 -> 250 | D7: =(D6+D8)/2 -> 290 | E7: =(E6+E8)/2 -> 330
A8: 60 | B8: 200 | C8: 210 | D8: 250 | E8: 300
A9: 55 | B9: =(B8+B10)/2 -> 175 | C9: =(C8+C10)/2 -> 185 | D9: =(D8+D10)/2 -> 220 | E9: =(E8+E10)/2 -> 265
A10: 50 | B10: 150 | C10: 160 | D10: 190 | E10: 230
A11: 45 | B11: =(B10+B12)/2 -> 125 | C11: =(C10+C12)/2 -> 135 | D11: =(D10+D12)/2 -> 160 | E11: =(E10+E12)/2 -> 195
A12: 40 | B12: 100 | C12: 110 | D12: 130 | E12: 160
A13: 35 | B13: =(B14+B12)/2 -> 85 | C13: =(C14+C12)/2 -> 95 | D13: =(D14+D12)/2 -> 110 | E13: =(E14+E12)/2 -> 135
A14: 30 | B14: 70 | C14: 80 | D14: 90 | E14: 110
A16: NOTE: The above values are taken from the AASHTO RDG, Table 5-10(b)
A19: Northbound
A20: Eastbound
A21: Westbound
A22: Southbound
A24: Yes
A25: No

Sheet Policy
A1: Design Basis: The standard method of determining guardrail placement for shielding hazards is based on the Runout Length and the Length of Need calculation in the AASHTO Roadside Design Guide (RDG), 4th Edition
A5: FDOT Design Tool Note: No warranty, expressed or implied, is made by the Florida Department of Transportation as to the accuracy and functioning of any programs or the results they produce, nor shall the fact of distribution constitute any such warranty, and no responsibility is assumed by the Florida Department of Transportation in any connection therewith. By using this program, you are agreeing to the above disclaimer.

Sheet Version History
A1: Version: | B1: Released: | C1: Changes:
A2: v1.0 | B2: 2016-02-09 | C2: initial release
A3: v1.01 | B3: 2016-03-01 | C3: Part D: updated default LP2 for TL-3 option to match Index 400 layout; removed TL-2 option
A4: v1.02 | B4: 2016-03-07 | C4: added "Rigid Barrier Approach" (Part E) module for additional layout option
A5: v1.03 | B5: 2016-05-10 | C5: corrected stationing output for "Rigid Barrier Approach" (Part E) to include Length of Gating, Lg
A6: v1.04 | B6: 2017-10-31 | C6: updated for new nomenclature and Index renumbering "Standard Plans, Index 536-001"
A7: v1.1 | B7: 2018-11-01 | C7: updated departure line location for Crash Cushions per new FY2019-20 Index 544-001; removed "Type II" designation from Trailing Anchorage and extended it 25 feet downstream of hazard
A8: v1.2 | B8: 2019-11-01 | C8: removed flared terminal as default option from drawings per RDB18-02 for MASH terminals and added notes to explain limited usage; updated notes to explain current limited availability of gating terminals
